[Event "*** Titled Tuesday Blitz"]
[Site "Chess.com"]
[Date "2020.02.04"]
[Round "5"]
[White "DamianoLew95"]
[Black "FearNoEvil12"]
[Result "1-0"]
[WhiteElo "2594"]
[BlackElo "2049"]
[TimeControl "180+2"]
[EndTime "14:04:28 PST"]
[Termination "DamianoLew95 won by resignation"]

1. d4 {[%clk 0:03:01.9]} 1... b5 {[%clk 0:02:59.7]} 2. e4 {[%clk 0:03:00.3]}
2... a6 {[%clk 0:03:01]} 3. Nf3 {[%clk 0:03:00.7]} 3... Bb7 {[%clk 0:03:01.9]}
4. d5 {[%clk 0:03:01.8]} 4... e6 {[%clk 0:03:02.5]} 5. a4 {[%clk 0:03:02.2]}
5... b4 {[%clk 0:03:02.4]} 6. dxe6 {[%clk 0:02:56.6]} 6... fxe6 {[%clk
0:03:02.2]} 7. Bd3 {[%clk 0:02:57.2]} 7... Nf6 {[%clk 0:02:58.9]} 8. e5 {[%clk
0:02:58.1]} 8... Nd5 {[%clk 0:02:59.9]} 9. Ng5 {[%clk 0:02:57.9]} 9... Ne7
{[%clk 0:02:26.7]} 10. Nxh7 {[%clk 0:02:35.8]} 10... d6 {[%clk 0:02:14.9]} 11.
Ng5 {[%clk 0:02:27.5]} 11... Qd7 {[%clk 0:01:57.3]} 12. Qg4 {[%clk 0:02:22.1]}
12... Nbc6 {[%clk 0:01:47.8]} 13. exd6 {[%clk 0:02:18.9]} 13... cxd6 {[%clk
0:01:38.1]} 14. Qxe6 {[%clk 0:02:10.4]} 14... Qxe6+ {[%clk 0:01:32.8]} 15. Nxe6
{[%clk 0:02:10.5]} 15... Kd7 {[%clk 0:01:34.1]} 16. Nxf8+ {[%clk 0:02:05.3]}
16... Raxf8 {[%clk 0:01:35.4]} 17. f3 {[%clk 0:02:06.5]} 17... Nd5 {[%clk
0:01:19.1]} 18. Kf2 {[%clk 0:01:59.8]} 18... Nd4 {[%clk 0:01:18.5]} 19. Be3
{[%clk 0:01:55.3]} 19... Nxe3 {[%clk 0:01:17.5]} 20. Kxe3 {[%clk 0:01:57.2]}
20... Ne6 {[%clk 0:01:17]} 21. Nd2 {[%clk 0:01:56.1]} 21... Rh5 {[%clk
0:01:15.9]} 22. Rae1 {[%clk 0:01:48.7]} 22... Nf4 {[%clk 0:01:14.5]} 23. Kf2
{[%clk 0:01:48.6]} 23... Rg5 {[%clk 0:01:09]} 24. Rhg1 {[%clk 0:01:27.4]} 24...
Nxd3+ {[%clk 0:01:03.9]} 25. cxd3 {[%clk 0:01:28.3]} 25... Rd5 {[%clk 0:01:05]}
26. Re3 {[%clk 0:01:27.2]} 26... Rc8 {[%clk 0:01:05.4]} 27. Nc4 {[%clk
0:01:27.8]} 27... Rf5 {[%clk 0:00:57.2]} 28. Nb6+ {[%clk 0:01:25.7]} 28... Kc7
{[%clk 0:00:56.7]} 29. Nxc8 {[%clk 0:01:26.3]} 29... Kxc8 {[%clk 0:00:57.4]} 30.
Re7 {[%clk 0:01:24.1]} 30... g5 {[%clk 0:00:57.3]} 31. Rc1+ {[%clk 0:01:19.4]}
31... Kb8 {[%clk 0:00:58.1]} 32. Re8+ {[%clk 0:01:08.5]} 32... Ka7 {[%clk
0:00:57.3]} 33. a5 {[%clk 0:01:10]} 33... Rf7 {[%clk 0:00:55.9]} 34. Rce1 {[%clk
0:01:08.8]} 34... Rc7 {[%clk 0:00:50.5]} 35. R1e7 {[%clk 0:01:03.1]} 35... Rc2+
{[%clk 0:00:49.7]} 36. Ke3 {[%clk 0:01:03.2]} 36... Rxb2 {[%clk 0:00:49.6]} 37.
Rg8 {[%clk 0:01:02.8]} 1-0

[Event "*** Titled Tuesday Blitz"]
[Site "Chess.com"]
[Date "2020.02.04"]
[Round "5"]
[White "Korchmar_Vasiliy"]
[Black "vladimirdamjanovic"]
[Result "1-0"]
[WhiteElo "2795"]
[BlackElo "2631"]
[TimeControl "180+2"]
[EndTime "14:04:31 PST"]
[Termination "Korchmar_Vasiliy won by resignation"]

1. d4 {[%clk 0:03:01.9]} 1... Nf6 {[%clk 0:03:00.9]} 2. c4 {[%clk 0:03:01.5]}
2... c5 {[%clk 0:03:01.6]} 3. d5 {[%clk 0:03:02.1]} 3... b5 {[%clk 0:03:02.9]}
4. cxb5 {[%clk 0:03:02.6]} 4... a6 {[%clk 0:03:04.4]} 5. bxa6 {[%clk 0:03:04.2]}
5... g6 {[%clk 0:03:05.8]} 6. Nc3 {[%clk 0:03:05.6]} 6... Bg7 {[%clk 0:03:07.3]}
7. e4 {[%clk 0:03:06.2]} 7... O-O {[%clk 0:03:08.7]} 8. a7 {[%clk 0:03:07.1]}
8... Rxa7 {[%clk 0:03:06.9]} 9. Nf3 {[%clk 0:03:06.6]} 9... d6 {[%clk
0:02:59.9]} 10. Be2 {[%clk 0:03:05.2]} 10... Ba6 {[%clk 0:02:54.9]} 11. O-O
{[%clk 0:03:05.9]} 11... Nbd7 {[%clk 0:02:50.7]} 12. a4 {[%clk 0:02:58.9]} 12...
Qb6 {[%clk 0:02:46.3]} 13. Re1 {[%clk 0:02:45.2]} 13... Rb8 {[%clk 0:02:41.8]}
14. Nb5 {[%clk 0:02:41.6]} 14... Raa8 {[%clk 0:02:23.9]} 15. Rb1 {[%clk
0:02:41.5]} 15... Nxe4 {[%clk 0:02:09.5]} 16. Bd3 {[%clk 0:02:42.9]} 16... Bxb5
{[%clk 0:02:10.5]} 17. axb5 {[%clk 0:02:42.7]} 17... Nef6 {[%clk 0:02:07.1]} 18.
Rxe7 {[%clk 0:02:39.3]} 18... Re8 {[%clk 0:02:06.9]} 19. Rxe8+ {[%clk
0:02:30.3]} 19... Rxe8 {[%clk 0:02:08.8]} 20. Bc4 {[%clk 0:02:31.8]} 20... Ng4
{[%clk 0:02:05.7]} 21. h3 {[%clk 0:02:22.4]} 21... Nge5 {[%clk 0:02:03.6]} 22.
Nxe5 {[%clk 0:02:23.9]} 22... Nxe5 {[%clk 0:02:02.7]} 23. Bf1 {[%clk 0:02:25.3]}
23... Nd7 {[%clk 0:01:57.1]} 24. Be3 {[%clk 0:02:21.3]} 24... Qb7 {[%clk
0:01:51.2]} 25. b4 {[%clk 0:02:20.6]} 25... cxb4 {[%clk 0:01:39]} 26. Rxb4
{[%clk 0:02:22.5]} 26... Nb6 {[%clk 0:01:40.6]} 27. Bxb6 {[%clk 0:02:23.5]}
27... Qxb6 {[%clk 0:01:42.5]} 28. Qc1 {[%clk 0:02:17.1]} 28... Bd4 {[%clk
0:01:39.6]} 29. Qf4 {[%clk 0:02:06.3]} 29... Bc5 {[%clk 0:01:35.1]} 30. Rb1
{[%clk 0:02:03.2]} 30... Re5 {[%clk 0:01:28.7]} 31. g4 {[%clk 0:01:57.5]} 31...
Rxd5 {[%clk 0:01:19.6]} 32. Bc4 {[%clk 0:01:55.8]} 32... Qb7 {[%clk 0:00:26]}
33. Qf3 {[%clk 0:01:56.7]} 33... Bxf2+ {[%clk 0:00:17.3]} 34. Kxf2 {[%clk
0:01:58.6]} 34... Rd2+ {[%clk 0:00:18.1]} 35. Be2 {[%clk 0:01:59.6]} 35... Qb6+
{[%clk 0:00:06.9]} 36. Qe3 {[%clk 0:02:00.6]} 36... Rd4 {[%clk 0:00:08.5]} 37.
Rb4 {[%clk 0:01:53.3]} 37... Qc5 {[%clk 0:00:02.9]} 38. Rxd4 {[%clk 0:01:53.5]}
38... Qxb5 {[%clk 0:00:03.6]} 1-0

[Event "*** Titled Tuesday Blitz"]
[Site "Chess.com"]
[Date "2020.02.04"]
[Round "5"]
[White "12teen"]
[Black "Alopekos"]
[Result "1-0"]
[WhiteElo "2710"]
[BlackElo "2481"]
[TimeControl "180+2"]
[EndTime "14:04:43 PST"]
[Termination "12teen won by resignation"]

1. e4 {[%clk 0:03:01.9]} 1... c5 {[%clk 0:02:56.1]} 2. Nc3 {[%clk 0:03:02]} 2...
a6 {[%clk 0:02:57]} 3. f4 {[%clk 0:03:01.9]} 3... b5 {[%clk 0:02:57.8]} 4. g3
{[%clk 0:03:03.5]} 4... Bb7 {[%clk 0:02:59.3]} 5. Bg2 {[%clk 0:03:04.4]} 5...
Nf6 {[%clk 0:03:00.1]} 6. d4 {[%clk 0:03:04.2]} 6... b4 {[%clk 0:02:49.2]} 7.
Nd5 {[%clk 0:03:00.1]} 7... Nxd5 {[%clk 0:02:36.3]} 8. exd5 {[%clk 0:03:02]}
8... e6 {[%clk 0:02:36]} 9. Be3 {[%clk 0:02:48.5]} 9... Qa5 {[%clk 0:02:13.6]}
10. Ne2 {[%clk 0:02:41]} 10... c4 {[%clk 0:02:12.5]} 11. O-O {[%clk 0:02:30.1]}
11... Bxd5 {[%clk 0:02:12.1]} 12. Bh3 {[%clk 0:02:22.3]} 12... g6 {[%clk
0:01:20.1]} 13. f5 {[%clk 0:01:51.1]} 13... gxf5 {[%clk 0:01:14.7]} 14. Nf4
{[%clk 0:01:52.8]} 14... Be4 {[%clk 0:01:15]} 15. a3 {[%clk 0:01:16.3]} 15...
bxa3 {[%clk 0:01:11.5]} 16. d5 {[%clk 0:01:15.3]} 16... Bc5 {[%clk 0:01:06.6]}
17. Qe2 {[%clk 0:01:04.5]} 17... Qb6 {[%clk 0:01:06.7]} 18. Rxa3 {[%clk
0:01:00.5]} 18... Bxe3+ {[%clk 0:00:25.8]} 19. Rxe3 {[%clk 0:01:02.4]} 19... Kd8
{[%clk 0:00:15]} 20. Rd1 {[%clk 0:00:58.7]} 20... Kc7 {[%clk 0:00:09.6]} 21.
Qxc4+ {[%clk 0:00:52.1]} 21... Nc6 {[%clk 0:00:06.6]} 22. Kf2 {[%clk 0:00:46.3]}
22... exd5 {[%clk 0:00:04.2]} 23. Rxd5 {[%clk 0:00:43.5]} 23... Bxd5 {[%clk
0:00:06.1]} 24. Nxd5+ {[%clk 0:00:44.4]} 1-0

[Event "*** Titled Tuesday Blitz"]
[Site "Chess.com"]
[Date "2020.02.04"]
[Round "5"]
[White "IMTominho"]
[Black "Kobalia"]
[Result "1-0"]
[WhiteElo "2799"]
[BlackElo "2635"]
[TimeControl "180+2"]
[EndTime "14:04:57 PST"]
[Termination "IMTominho won by checkmate"]

1. d4 {[%clk 0:03:01.9]} 1... d5 {[%clk 0:03:00.5]} 2. c4 {[%clk 0:03:02]} 2...
c6 {[%clk 0:03:01.6]} 3. Nf3 {[%clk 0:03:00.2]} 3... Nf6 {[%clk 0:03:01.6]} 4.
Nc3 {[%clk 0:02:57.9]} 4... a6 {[%clk 0:03:00.7]} 5. a4 {[%clk 0:02:57]} 5... e6
{[%clk 0:02:59.9]} 6. g3 {[%clk 0:02:57.4]} 6... a5 {[%clk 0:02:58.6]} 7. Bg2
{[%clk 0:02:55.7]} 7... Be7 {[%clk 0:02:57.4]} 8. O-O {[%clk 0:02:53.2]} 8...
O-O {[%clk 0:02:57.7]} 9. Bf4 {[%clk 0:02:46.7]} 9... Nbd7 {[%clk 0:02:47.3]}
10. Qc2 {[%clk 0:02:43.5]} 10... dxc4 {[%clk 0:02:29.5]} 11. Rfd1 {[%clk
0:02:40.1]} 11... Nd5 {[%clk 0:02:23.9]} 12. Ne4 {[%clk 0:02:30.3]} 12... Nxf4
{[%clk 0:02:06.1]} 13. gxf4 {[%clk 0:02:32.2]} 13... Nb6 {[%clk 0:01:57.8]} 14.
Ne5 {[%clk 0:02:29.4]} 14... Nd5 {[%clk 0:01:46.1]} 15. e3 {[%clk 0:02:27.4]}
15... f6 {[%clk 0:01:44.2]} 16. Nxc4 {[%clk 0:02:26.1]} 16... Bd7 {[%clk
0:01:43.7]} 17. Nc5 {[%clk 0:02:21.7]} 17... Bc8 {[%clk 0:01:19.7]} 18. Rac1
{[%clk 0:02:18.4]} 18... b6 {[%clk 0:01:12]} 19. Nd3 {[%clk 0:02:14.2]} 19...
Ba6 {[%clk 0:01:11.2]} 20. Bh3 {[%clk 0:02:09.1]} 20... f5 {[%clk 0:00:50.6]}
21. Bg2 {[%clk 0:02:05.9]} 21... Rc8 {[%clk 0:00:50.3]} 22. Qb3 {[%clk
0:02:04.1]} 22... Kh8 {[%clk 0:00:44.6]} 23. Nce5 {[%clk 0:01:58.5]} 23... c5
{[%clk 0:00:44.2]} 24. dxc5 {[%clk 0:01:48.5]} 24... bxc5 {[%clk 0:00:45]} 25.
Ne1 {[%clk 0:01:24.8]} 25... g5 {[%clk 0:00:41.4]} 26. Bxd5 {[%clk 0:01:19.5]}
26... exd5 {[%clk 0:00:41]} 27. Rxd5 {[%clk 0:01:21.4]} 27... Qe8 {[%clk
0:00:41.2]} 28. Qc3 {[%clk 0:01:16.4]} 28... Bf6 {[%clk 0:00:39.7]} 29. fxg5
{[%clk 0:01:17.2]} 29... Qh5 {[%clk 0:00:25.4]} 30. gxf6 {[%clk 0:01:07.7]}
30... Rg8+ {[%clk 0:00:23.7]} 31. Ng2 {[%clk 0:01:01.1]} 31... Qh3 {[%clk
0:00:15]} 32. Nf7# {[%clk 0:00:56.1]} 1-0

[Event "*** Titled Tuesday Blitz"]
[Site "Chess.com"]
[Date "2020.02.04"]
[Round "5"]
[White "Gogolev_Artemy"]
[Black "Anton_Demchenko"]
[Result "0-1"]
[WhiteElo "2509"]
[BlackElo "2955"]
[TimeControl "180+2"]
[EndTime "14:05:04 PST"]
[Termination "Anton_Demchenko won by resignation"]

1. d4 {[%clk 0:03:01.2]} 1... Nf6 {[%clk 0:02:58.7]} 2. Nf3 {[%clk 0:03:00.4]}
2... g6 {[%clk 0:03:00.1]} 3. c4 {[%clk 0:02:58.1]} 3... Bg7 {[%clk 0:03:01.3]}
4. Nc3 {[%clk 0:02:59.4]} 4... O-O {[%clk 0:03:02.8]} 5. e4 {[%clk 0:02:59.7]}
5... d6 {[%clk 0:03:04.2]} 6. Be2 {[%clk 0:02:59.7]} 6... e5 {[%clk 0:03:05.6]}
7. O-O {[%clk 0:02:59.3]} 7... Nbd7 {[%clk 0:03:06.8]} 8. Qc2 {[%clk 0:02:58.2]}
8... c6 {[%clk 0:03:03.4]} 9. d5 {[%clk 0:02:58.3]} 9... Ne8 {[%clk 0:03:02.7]}
10. dxc6 {[%clk 0:02:56.2]} 10... bxc6 {[%clk 0:03:03.7]} 11. b4 {[%clk
0:02:49.3]} 11... a5 {[%clk 0:02:56.3]} 12. b5 {[%clk 0:02:49.9]} 12... c5
{[%clk 0:02:54.7]} 13. Ne1 {[%clk 0:02:37.1]} 13... Nb6 {[%clk 0:02:51.8]} 14.
f4 {[%clk 0:02:36.7]} 14... exf4 {[%clk 0:02:50.9]} 15. Bxf4 {[%clk 0:02:36.9]}
15... Be6 {[%clk 0:02:45.9]} 16. Rd1 {[%clk 0:02:24.7]} 16... Nxc4 {[%clk
0:02:45.4]} 17. Nf3 {[%clk 0:02:20.6]} 17... Nb6 {[%clk 0:02:22.7]} 18. e5
{[%clk 0:01:42.4]} 18... d5 {[%clk 0:02:16.1]} 19. Ne4 {[%clk 0:01:43.2]} 19...
Bf5 {[%clk 0:02:17.4]} 20. Bg5 {[%clk 0:01:29.1]} 20... Qc7 {[%clk 0:01:51.1]}
21. Qxc5 {[%clk 0:01:14.9]} 21... dxe4 {[%clk 0:01:46.3]} 22. Qxc7 {[%clk
0:01:13.7]} 22... Nxc7 {[%clk 0:01:48.2]} 23. Nd4 {[%clk 0:01:14.8]} 23... Ne6
{[%clk 0:01:35.8]} 24. Nxf5 {[%clk 0:00:53.1]} 24... gxf5 {[%clk 0:01:32.3]} 25.
Be3 {[%clk 0:00:53.8]} 25... Na4 {[%clk 0:01:28]} 26. Rxf5 {[%clk 0:00:54]}
26... Nc3 {[%clk 0:01:28.9]} 27. Rd2 {[%clk 0:00:52.8]} 27... Rad8 {[%clk
0:01:28.1]} 28. Bc4 {[%clk 0:00:50.5]} 28... Rxd2 {[%clk 0:00:47.8]} 29. Bxd2
{[%clk 0:00:52.4]} 29... Nd4 {[%clk 0:00:49]} 30. Rg5 {[%clk 0:00:35.3]} 30...
Ncxb5 {[%clk 0:00:37.1]} 31. e6 {[%clk 0:00:33.6]} 31... Nd6 {[%clk 0:00:38.3]}
32. exf7+ {[%clk 0:00:32.6]} 32... Kh8 {[%clk 0:00:39.8]} 33. Be6 {[%clk
0:00:25.1]} 33... Nxe6 {[%clk 0:00:40.2]} 0-1

[Event "*** Titled Tuesday Blitz"]
[Site "Chess.com"]
[Date "2020.02.04"]
[Round "5"]
[White "dmosesov"]
[Black "mortngabriel"]
[Result "1/2-1/2"]
[WhiteElo "2585"]
[BlackElo "2428"]
[TimeControl "180+2"]
[EndTime "14:05:10 PST"]
[Termination "Game drawn by repetition"]

1. d4 {[%clk 0:03:01.2]} 1... Nf6 {[%clk 0:02:59]} 2. c4 {[%clk 0:03:02.3]} 2...
e6 {[%clk 0:03:00.4]} 3. Nf3 {[%clk 0:03:02.8]} 3... b6 {[%clk 0:03:01.6]} 4. g3
{[%clk 0:03:03.7]} 4... Ba6 {[%clk 0:03:02.6]} 5. Qc2 {[%clk 0:03:04.7]} 5...
Bb7 {[%clk 0:03:03.6]} 6. Bg2 {[%clk 0:03:05.8]} 6... c5 {[%clk 0:03:05.5]} 7.
d5 {[%clk 0:03:05.6]} 7... exd5 {[%clk 0:03:06.2]} 8. cxd5 {[%clk 0:03:07.5]}
8... Nxd5 {[%clk 0:03:03.4]} 9. O-O {[%clk 0:03:08.6]} 9... Be7 {[%clk
0:03:03.2]} 10. Rd1 {[%clk 0:03:09.9]} 10... O-O {[%clk 0:03:02.7]} 11. Qf5
{[%clk 0:03:09.5]} 11... Nf6 {[%clk 0:02:53]} 12. Nc3 {[%clk 0:03:08.3]} 12...
d5 {[%clk 0:02:30.6]} 13. Ng5 {[%clk 0:02:55.3]} 13... Qd7 {[%clk 0:02:20.5]}
14. Qxd7 {[%clk 0:02:53.5]} 14... Nbxd7 {[%clk 0:02:21.2]} 15. Nxd5 {[%clk
0:02:55.2]} 15... Nxd5 {[%clk 0:02:22.2]} 16. Bxd5 {[%clk 0:02:57.1]} 16... Bxd5
{[%clk 0:02:23.7]} 17. Rxd5 {[%clk 0:02:59]} 17... Nf6 {[%clk 0:02:24.5]} 18.
Rd1 {[%clk 0:02:58.5]} 18... Rad8 {[%clk 0:02:17.6]} 19. Bf4 {[%clk 0:02:57.8]}
19... Nd5 {[%clk 0:02:14.9]} 20. Ne4 {[%clk 0:02:58.5]} 20... Nxf4 {[%clk
0:02:13.2]} 21. gxf4 {[%clk 0:03:00.3]} 21... f5 {[%clk 0:02:01.8]} 22. Nc3
{[%clk 0:03:00.8]} 22... Bf6 {[%clk 0:02:01.8]} 23. Rab1 {[%clk 0:02:50.9]}
23... Bxc3 {[%clk 0:01:59]} 24. bxc3 {[%clk 0:02:52.7]} 24... Kf7 {[%clk
0:01:57.3]} 25. Kg2 {[%clk 0:02:53.8]} 25... Ke6 {[%clk 0:01:49.3]} 26. Kf3
{[%clk 0:02:52.8]} 26... Rd5 {[%clk 0:01:27.1]} 27. h4 {[%clk 0:02:20.7]} 27...
Rfd8 {[%clk 0:01:24.8]} 28. Rxd5 {[%clk 0:02:21.8]} 28... Rxd5 {[%clk
0:01:26.7]} 29. Rg1 {[%clk 0:02:23.3]} 29... g6 {[%clk 0:01:26.2]} 30. Ke3
{[%clk 0:02:24.7]} 30... c4 {[%clk 0:01:12.1]} 31. h5 {[%clk 0:02:22.6]} 31...
gxh5 {[%clk 0:00:52.9]} 32. Rg7 {[%clk 0:02:23.6]} 32... Rd7 {[%clk 0:00:37.1]}
33. Rg5 {[%clk 0:02:24.4]} 33... Kf6 {[%clk 0:00:36.3]} 34. Rxh5 {[%clk
0:02:25.8]} 34... Kg6 {[%clk 0:00:34.8]} 35. Rh1 {[%clk 0:02:26.2]} 35... h5
{[%clk 0:00:35.1]} 36. Rg1+ {[%clk 0:02:14.6]} 36... Kf6 {[%clk 0:00:35.1]} 37.
Rh1 {[%clk 0:02:14.1]} 37... Rh7 {[%clk 0:00:24.6]} 38. Kd4 {[%clk 0:02:15.2]}
38... h4 {[%clk 0:00:18]} 39. Rh3 {[%clk 0:02:15]} 39... b5 {[%clk 0:00:16.8]}
40. f3 {[%clk 0:02:13.3]} 40... Ke6 {[%clk 0:00:10.6]} 41. Kc5 {[%clk 0:02:10]}
41... a6 {[%clk 0:00:10.6]} 42. e4 {[%clk 0:02:11.2]} 42... Rh5 {[%clk
0:00:04.3]} 43. Kb6 {[%clk 0:02:11.6]} 43... Kd6 {[%clk 0:00:04.7]} 44. a3
{[%clk 0:02:02.5]} 44... Rh8 {[%clk 0:00:04.2]} 45. Kxa6 {[%clk 0:02:02.6]}
45... Kc6 {[%clk 0:00:04.4]} 46. Ka7 {[%clk 0:02:02]} 46... Rh7+ {[%clk
0:00:05.3]} 47. Ka6 {[%clk 0:02:02.8]} 47... Rh8 {[%clk 0:00:07.2]} 48. Ka7
{[%clk 0:02:00.7]} 48... Rh7+ {[%clk 0:00:08.1]} 49. Ka6 {[%clk 0:02:01.7]}
49... Rh8 {[%clk 0:00:10]} 1/2-1/2

[Event "*** Titled Tuesday Blitz"]
[Site "Chess.com"]
[Date "2020.02.04"]
[Round "5"]
[White "ChEsper99"]
[Black "Heineccius"]
[Result "0-1"]
[WhiteElo "2034"]
[BlackElo "2656"]
[TimeControl "180+2"]
[EndTime "14:05:10 PST"]
[Termination "Heineccius won by resignation"]

1. e4 {[%clk 0:03:01.9]} 1... c5 {[%clk 0:03:00.6]} 2. Nf3 {[%clk 0:03:02.7]}
2... e6 {[%clk 0:03:01.3]} 3. g3 {[%clk 0:03:03.3]} 3... b6 {[%clk 0:03:00.5]}
4. Bg2 {[%clk 0:03:02.3]} 4... Bb7 {[%clk 0:03:01.9]} 5. Nc3 {[%clk 0:03:03.5]}
5... Nf6 {[%clk 0:03:02.1]} 6. Qe2 {[%clk 0:02:53.7]} 6... d6 {[%clk 0:03:01.2]}
7. O-O {[%clk 0:02:54.2]} 7... Be7 {[%clk 0:03:01.3]} 8. d4 {[%clk 0:02:53.8]}
8... cxd4 {[%clk 0:03:00.5]} 9. Nxd4 {[%clk 0:02:55.7]} 9... a6 {[%clk
0:03:00.2]} 10. a4 {[%clk 0:02:47.1]} 10... Qc7 {[%clk 0:02:57.5]} 11. Rd1
{[%clk 0:02:26.7]} 11... O-O {[%clk 0:02:57.5]} 12. Be3 {[%clk 0:02:19.7]} 12...
Nc6 {[%clk 0:02:57.2]} 13. Nxc6 {[%clk 0:02:19.7]} 13... Bxc6 {[%clk 0:02:57]}
14. Kh1 {[%clk 0:02:14.7]} 14... Qb7 {[%clk 0:02:56.6]} 15. Bf4 {[%clk
0:02:09.7]} 15... Rfd8 {[%clk 0:02:51.8]} 16. Rd2 {[%clk 0:02:07]} 16... e5
{[%clk 0:02:38.8]} 17. Bg5 {[%clk 0:02:06.6]} 17... Nxe4 {[%clk 0:02:37.4]} 18.
Nxe4 {[%clk 0:00:54.8]} 18... Bxg5 {[%clk 0:02:34.4]} 19. Nxg5 {[%clk
0:00:55.9]} 19... Bxg2+ {[%clk 0:02:35.6]} 20. Kg1 {[%clk 0:00:57.1]} 20... Bc6
{[%clk 0:02:19.7]} 21. Qh5 {[%clk 0:00:56.4]} 21... h6 {[%clk 0:02:20.5]} 22.
Nh3 {[%clk 0:00:45.8]} 22... Bh1 {[%clk 0:01:44.9]} 23. f4 {[%clk 0:00:44.4]}
23... Bf3 {[%clk 0:01:45.5]} 24. Qf5 {[%clk 0:00:29.3]} 24... b5 {[%clk
0:01:38.5]} 25. Rf1 {[%clk 0:00:21.3]} 25... Be4 {[%clk 0:01:30.9]} 26. Qg4
{[%clk 0:00:17.7]} 26... Qb6+ {[%clk 0:01:30.5]} 27. Rdf2 {[%clk 0:00:16.3]}
27... f5 {[%clk 0:01:18.5]} 28. Qg6 {[%clk 0:00:11.7]} 28... Qc5 {[%clk
0:01:17.9]} 29. fxe5 {[%clk 0:00:11.4]} 29... dxe5 {[%clk 0:01:19]} 30. g4
{[%clk 0:00:04]} 30... Rd6 {[%clk 0:01:16.6]} 31. Qh5 {[%clk 0:00:03.2]} 31...
fxg4 {[%clk 0:01:04.7]} 0-1

[Event "*** Titled Tuesday Blitz"]
[Site "Chess.com"]
[Date "2020.02.04"]
[Round "5"]
[White "Roman_Ovetchkin"]
[Black "hansen"]
[Result "1-0"]
[WhiteElo "2720"]
[BlackElo "2878"]
[TimeControl "180+2"]
[EndTime "14:05:14 PST"]
[Termination "Roman_Ovetchkin won by resignation"]

1. d4 {[%clk 0:03:01.9]} 1... Nf6 {[%clk 0:02:56.1]} 2. c4 {[%clk 0:03:02.8]}
2... e6 {[%clk 0:02:56]} 3. Nf3 {[%clk 0:03:02.5]} 3... d5 {[%clk 0:02:53.7]} 4.
g3 {[%clk 0:03:03.4]} 4... Be7 {[%clk 0:02:52.4]} 5. Bg2 {[%clk 0:03:04.5]} 5...
O-O {[%clk 0:02:54.1]} 6. O-O {[%clk 0:03:06]} 6... dxc4 {[%clk 0:02:39.9]} 7.
Qc2 {[%clk 0:03:06.7]} 7... b5 {[%clk 0:02:30.7]} 8. a4 {[%clk 0:03:06.7]} 8...
c6 {[%clk 0:02:23.6]} 9. axb5 {[%clk 0:03:05.8]} 9... Qb6 {[%clk 0:01:45.9]} 10.
Ne5 {[%clk 0:02:52]} 10... Nd5 {[%clk 0:01:10.7]} 11. Nxc4 {[%clk 0:02:32]}
11... Qxd4 {[%clk 0:01:00.2]} 12. Be3 {[%clk 0:02:11.4]} 12... Qf6 {[%clk
0:00:52.9]} 13. b6 {[%clk 0:02:05.1]} 13... Nd7 {[%clk 0:00:49.6]} 14. Rxa7
{[%clk 0:01:39.5]} 14... Rb8 {[%clk 0:00:49.4]} 15. Nbd2 {[%clk 0:01:38.8]}
15... Bd8 {[%clk 0:00:24.5]} 16. Ne4 {[%clk 0:01:01.7]} 16... Qg6 {[%clk
0:00:25.7]} 17. Rxd7 {[%clk 0:01:01]} 17... f5 {[%clk 0:00:15.6]} 18. Rxd8
{[%clk 0:00:53.8]} 18... Rxd8 {[%clk 0:00:16.4]} 19. Ne5 {[%clk 0:00:51]} 19...
Qe8 {[%clk 0:00:16.8]} 20. Nxc6 {[%clk 0:00:50.1]} 20... Nxe3 {[%clk 0:00:13.3]}
21. fxe3 {[%clk 0:00:51.6]} 21... Rxb6 {[%clk 0:00:14.2]} 22. Nxd8 {[%clk
0:00:51.4]} 22... Qxd8 {[%clk 0:00:15.5]} 23. Rd1 {[%clk 0:00:47.6]} 23... Qf8
{[%clk 0:00:16.6]} 24. Nc3 {[%clk 0:00:43.7]} 24... h6 {[%clk 0:00:13.5]} 25.
Rd2 {[%clk 0:00:42]} 25... Kh7 {[%clk 0:00:14.5]} 26. Qd3 {[%clk 0:00:43]} 26...
Rb4 {[%clk 0:00:11.8]} 27. Qd6 {[%clk 0:00:42.2]} 27... Qxd6 {[%clk 0:00:12.8]}
28. Rxd6 {[%clk 0:00:42.6]} 28... Rxb2 {[%clk 0:00:14.7]} 29. Kf2 {[%clk
0:00:41.9]} 29... Rc2 {[%clk 0:00:14.7]} 30. Nb5 {[%clk 0:00:39.3]} 30... Kg6
{[%clk 0:00:11.6]} 31. Nd4 {[%clk 0:00:40]} 31... Rd2 {[%clk 0:00:12.8]} 32.
Nxf5 {[%clk 0:00:33.9]} 1-0